[Event "*** Titled Tuesday Blitz"]
[Site "Chess.com"]
[Date "2020.11.24"]
[Round "1"]
[White "Siniauski"]
[Black "queen_iryna"]
[Result "1/2-1/2"]
[WhiteElo "2545"]
[BlackElo "2256"]
[TimeControl "180+1"]
[EndTime "10:22:23 PST"]
[Termination "Game drawn by repetition"]

1. e4 {[%clk 0:03:00.9]} 1... d6 {[%clk 0:02:59.7]} 2. d4 {[%clk 0:03:00.1]}
2... Nf6 {[%clk 0:03:00]} 3. Nc3 {[%clk 0:03:00.4]} 3... e5 {[%clk 0:03:00.3]}
4. Nge2 {[%clk 0:02:57.3]} 4... Nc6 {[%clk 0:02:59.4]} 5. d5 {[%clk 0:02:57.3]}
5... Ne7 {[%clk 0:02:58.8]} 6. g3 {[%clk 0:02:57.9]} 6... Ng6 {[%clk 0:02:58.8]}
7. Bg2 {[%clk 0:02:58.1]} 7... h5 {[%clk 0:02:51.5]} 8. Bg5 {[%clk 0:02:54.2]}
8... Be7 {[%clk 0:02:51.1]} 9. h4 {[%clk 0:02:49.9]} 9... Ng4 {[%clk 0:02:44.9]}
10. Bxe7 {[%clk 0:02:43.4]} 10... Qxe7 {[%clk 0:02:45.8]} 11. Qd2 {[%clk
0:02:34.9]} 11... Bd7 {[%clk 0:02:32]} 12. f3 {[%clk 0:02:31.4]} 12... Nh6
{[%clk 0:02:22.7]} 13. O-O-O {[%clk 0:02:31]} 13... f5 {[%clk 0:02:22.5]} 14.
Bh3 {[%clk 0:02:25.3]} 14... Rf8 {[%clk 0:01:50.1]} 15. Qg5 {[%clk 0:02:07.6]}
15... Qxg5+ {[%clk 0:01:24.3]} 16. hxg5 {[%clk 0:02:08.5]} 16... Nf7 {[%clk
0:01:24.5]} 17. exf5 {[%clk 0:01:54.6]} 17... Nxg5 {[%clk 0:01:14.2]} 18. fxg6
{[%clk 0:01:52.8]} 18... Nxh3 {[%clk 0:01:06.1]} 19. f4 {[%clk 0:01:34.3]} 19...
Nf2 {[%clk 0:01:03.1]} 20. Rxh5 {[%clk 0:01:34.1]} 20... Nxd1 {[%clk 0:01:02.7]}
21. Kxd1 {[%clk 0:01:27]} 21... exf4 {[%clk 0:01:00]} 22. gxf4 {[%clk
0:01:26.9]} 22... O-O-O {[%clk 0:00:52]} 23. Rh7 {[%clk 0:01:24.8]} 23... Bg4
{[%clk 0:00:51.8]} 24. Rxg7 {[%clk 0:01:20.4]} 24... Rxf4 {[%clk 0:00:51.7]} 25.
Ke1 {[%clk 0:01:00.2]} 25... Re8 {[%clk 0:00:44.8]} 26. Rh7 {[%clk 0:00:35.6]}
26... Bxe2 {[%clk 0:00:44.5]} 27. Nxe2 {[%clk 0:00:35.4]} 27... Rg4 {[%clk
0:00:40.4]} 28. g7 {[%clk 0:00:33]} 28... Rg8 {[%clk 0:00:25.5]} 29. Kd2 {[%clk
0:00:31.5]} 29... R4xg7 {[%clk 0:00:25.5]} 30. Rh4 {[%clk 0:00:29.8]} 30... Rg2
{[%clk 0:00:25]} 31. Kd3 {[%clk 0:00:30.1]} 31... Re8 {[%clk 0:00:23.1]} 32. Nd4
{[%clk 0:00:28.8]} 32... Reg8 {[%clk 0:00:19.5]} 33. Ne2 {[%clk 0:00:27.4]}
33... Rf8 {[%clk 0:00:16.4]} 34. Nf4 {[%clk 0:00:23.7]} 34... Rf2 {[%clk
0:00:13.5]} 35. Ne6 {[%clk 0:00:21.1]} 35... R8f3+ {[%clk 0:00:12.3]} 36. Ke4
{[%clk 0:00:21.5]} 36... b6 {[%clk 0:00:10]} 37. Rh8+ {[%clk 0:00:21.5]} 37...
Kb7 {[%clk 0:00:09.5]} 38. Nd8+ {[%clk 0:00:19.4]} 38... Ka6 {[%clk 0:00:09.2]}
39. Nc6 {[%clk 0:00:19.6]} 39... Rf4+ {[%clk 0:00:09.2]} 40. Ke3 {[%clk
0:00:20]} 40... R4f3+ {[%clk 0:00:09.5]} 41. Ke4 {[%clk 0:00:20]} 41... Rf4+
{[%clk 0:00:09.5]} 42. Ke3 {[%clk 0:00:20.4]} 42... R4f3+ {[%clk 0:00:06.7]} 43.
Ke4 {[%clk 0:00:20.8]} 1/2-1/2

[Event "*** Titled Tuesday Blitz"]
[Site "Chess.com"]
[Date "2020.11.24"]
[Round "1"]
[White "shaheus"]
[Black "PriSachu"]
[Result "0-1"]
[WhiteElo "2208"]
[BlackElo "2531"]
[TimeControl "180+1"]
[EndTime "10:22:27 PST"]
[Termination "PriSachu won by resignation"]

1. e4 {[%clk 0:03:00.9]} 1... e5 {[%clk 0:02:47.6]} 2. Nf3 {[%clk 0:03:01]} 2...
Nc6 {[%clk 0:02:46.5]} 3. d4 {[%clk 0:03:01.1]} 3... exd4 {[%clk 0:02:46]} 4.
Nxd4 {[%clk 0:03:01.4]} 4... Qf6 {[%clk 0:02:45.9]} 5. Be3 {[%clk 0:03:00.2]}
5... Bc5 {[%clk 0:02:44.2]} 6. Nb5 {[%clk 0:03:00.2]} 6... Bxe3 {[%clk
0:02:41.3]} 7. fxe3 {[%clk 0:03:00.5]} 7... Qh4+ {[%clk 0:02:30.4]} 8. g3 {[%clk
0:03:00.3]} 8... Qd8 {[%clk 0:02:30.9]} 9. Qg4 {[%clk 0:02:56.6]} 9... g6 {[%clk
0:02:14.2]} 10. Qf4 {[%clk 0:02:56.2]} 10... d6 {[%clk 0:02:11.8]} 11. Bc4
{[%clk 0:02:55.1]} 11... Ne5 {[%clk 0:02:04.1]} 12. O-O {[%clk 0:02:40.1]} 12...
f5 {[%clk 0:02:00.7]} 13. Bxg8 {[%clk 0:02:27.6]} 13... Rxg8 {[%clk 0:01:56.9]}
14. exf5 {[%clk 0:02:23.2]} 14... gxf5 {[%clk 0:01:51.6]} 15. N1c3 {[%clk
0:02:14.2]} 15... a6 {[%clk 0:01:44.8]} 16. Nd4 {[%clk 0:02:13]} 16... Qg5
{[%clk 0:01:34.4]} 17. Nxf5 {[%clk 0:02:05.5]} 17... Bxf5 {[%clk 0:01:25]} 18.
Qxf5 {[%clk 0:02:02.3]} 18... Qxf5 {[%clk 0:01:12.9]} 19. Rxf5 {[%clk
0:02:01.5]} 19... O-O-O {[%clk 0:01:13.1]} 20. e4 {[%clk 0:01:55.3]} 20... Rde8
{[%clk 0:01:12.3]} 21. Raf1 {[%clk 0:01:48.9]} 21... Nc4 {[%clk 0:01:10.3]} 22.
Rf7 {[%clk 0:01:32.4]} 22... h5 {[%clk 0:01:02.8]} 23. b3 {[%clk 0:01:12.4]}
23... Ne3 {[%clk 0:00:59.4]} 24. R1f2 {[%clk 0:01:10.8]} 24... Ng4 {[%clk
0:00:52.2]} 25. Re2 {[%clk 0:00:55.6]} 25... h4 {[%clk 0:00:52.4]} 26. Rf3
{[%clk 0:00:48.1]} 26... Ne5 {[%clk 0:00:51.9]} 27. Rfe3 {[%clk 0:00:46.5]}
27... Rg6 {[%clk 0:00:52.2]} 28. Kf1 {[%clk 0:00:39.9]} 28... Reg8 {[%clk
0:00:49.5]} 29. Rg2 {[%clk 0:00:36.5]} 29... Kd7 {[%clk 0:00:46.9]} 30. Nd5
{[%clk 0:00:34.2]} 30... c6 {[%clk 0:00:44.9]} 31. Nf4 {[%clk 0:00:34]} 31...
Rg4 {[%clk 0:00:45]} 32. Ke2 {[%clk 0:00:33.1]} 32... Rxf4 {[%clk 0:00:44.3]}
33. gxf4 {[%clk 0:00:32]} 33... Rxg2+ {[%clk 0:00:44.3]} 34. Kf1 {[%clk
0:00:32.1]} 34... Ng4 {[%clk 0:00:40.1]} 35. Kxg2 {[%clk 0:00:24.3]} 35... Nxe3+
{[%clk 0:00:39.9]} 36. Kh3 {[%clk 0:00:24.8]} 36... Nxc2 {[%clk 0:00:39]} 37.
Kxh4 {[%clk 0:00:25.2]} 37... Ke6 {[%clk 0:00:35.2]} 38. Kg5 {[%clk 0:00:25.3]}
38... d5 {[%clk 0:00:35.3]} 39. exd5+ {[%clk 0:00:24.7]} 39... cxd5 {[%clk
0:00:35.1]} 40. f5+ {[%clk 0:00:22.3]} 40... Kf7 {[%clk 0:00:35.2]} 41. Kf4
{[%clk 0:00:21.5]} 41... Kf6 {[%clk 0:00:31.4]} 42. h4 {[%clk 0:00:21.9]} 42...
Nd4 {[%clk 0:00:30.6]} 43. h5 {[%clk 0:00:20]} 43... Nxf5 {[%clk 0:00:30.6]} 44.
b4 {[%clk 0:00:18.1]} 44... Nh6 {[%clk 0:00:29.5]} 45. Ke3 {[%clk 0:00:15.9]}
45... Ke5 {[%clk 0:00:28.6]} 46. Kd3 {[%clk 0:00:16]} 46... d4 {[%clk 0:00:29]}
47. a4 {[%clk 0:00:16.3]} 47... Kd5 {[%clk 0:00:29.2]} 48. b5 {[%clk 0:00:16]}
48... axb5 {[%clk 0:00:29.5]} 49. axb5 {[%clk 0:00:16.4]} 49... b6 {[%clk
0:00:30.4]} 0-1

[Event "*** Titled Tuesday Blitz"]
[Site "Chess.com"]
[Date "2020.11.24"]
[Round "1"]
[White "FontVella8"]
[Black "parintele_chess"]
[Result "1-0"]
[WhiteElo "2527"]
[BlackElo "2198"]
[TimeControl "180+1"]
[EndTime "10:22:27 PST"]
[Termination "FontVella8 won by resignation"]

1. e4 {[%clk 0:02:51.8]} 1... c5 {[%clk 0:02:56.5]} 2. Nf3 {[%clk 0:02:51.2]}
2... Nc6 {[%clk 0:02:48.4]} 3. d4 {[%clk 0:02:51.1]} 3... cxd4 {[%clk
0:02:48.2]} 4. Nxd4 {[%clk 0:02:52]} 4... e5 {[%clk 0:02:47.3]} 5. Nb5 {[%clk
0:02:51.6]} 5... a6 {[%clk 0:02:47.4]} 6. Nd6+ {[%clk 0:02:51.3]} 6... Bxd6
{[%clk 0:02:47.8]} 7. Qxd6 {[%clk 0:02:52.2]} 7... Qf6 {[%clk 0:02:48.2]} 8. Qa3
{[%clk 0:02:51.9]} 8... Nge7 {[%clk 0:02:46.7]} 9. Nc3 {[%clk 0:02:52]} 9... d6
{[%clk 0:02:46.6]} 10. Be3 {[%clk 0:02:51.5]} 10... O-O {[%clk 0:02:46]} 11. Rd1
{[%clk 0:02:49.1]} 11... Nd4 {[%clk 0:02:42.7]} 12. Bd3 {[%clk 0:02:35]} 12...
Nec6 {[%clk 0:02:41.8]} 13. O-O {[%clk 0:02:33.2]} 13... Qg6 {[%clk 0:02:38.8]}
14. Kh1 {[%clk 0:02:32.4]} 14... f5 {[%clk 0:02:35.2]} 15. exf5 {[%clk
0:02:24.5]} 15... Bxf5 {[%clk 0:02:35.3]} 16. Bxf5 {[%clk 0:01:57.3]} 16... Rxf5
{[%clk 0:02:36.2]} 17. Nd5 {[%clk 0:01:57.2]} 17... Qf7 {[%clk 0:02:13.9]} 18.
Bxd4 {[%clk 0:01:04.6]} 18... exd4 {[%clk 0:01:54.7]} 19. c4 {[%clk 0:01:04.1]}
19... Rd8 {[%clk 0:01:46.6]} 20. Qg3 {[%clk 0:00:54.2]} 20... h6 {[%clk
0:01:36.6]} 21. b3 {[%clk 0:00:53.3]} 21... Rg5 {[%clk 0:01:33.9]} 22. Qd3
{[%clk 0:00:50.6]} 22... Rf8 {[%clk 0:01:29.1]} 23. f4 {[%clk 0:00:49.3]} 23...
Rxd5 {[%clk 0:01:20.9]} 24. cxd5 {[%clk 0:00:48.8]} 24... Qxd5 {[%clk
0:01:21.8]} 25. Qf3 {[%clk 0:00:40.2]} 25... Qf7 {[%clk 0:01:05.4]} 26. a3
{[%clk 0:00:29.5]} 26... d5 {[%clk 0:00:57.5]} 27. b4 {[%clk 0:00:28.5]} 27...
b5 {[%clk 0:00:56.6]} 28. Rc1 {[%clk 0:00:27.5]} 28... Rc8 {[%clk 0:00:52]} 29.
Rc5 {[%clk 0:00:24.6]} 29... Ne7 {[%clk 0:00:45.3]} 30. Rxc8+ {[%clk 0:00:21.9]}
30... Nxc8 {[%clk 0:00:46.2]} 31. Rc1 {[%clk 0:00:22.3]} 31... Nd6 {[%clk
0:00:37]} 32. g3 {[%clk 0:00:20.1]} 32... Ne4 {[%clk 0:00:36]} 33. Rd1 {[%clk
0:00:16]} 33... Qf6 {[%clk 0:00:34.3]} 34. Kg2 {[%clk 0:00:16.3]} 34... d3
{[%clk 0:00:27.5]} 35. Rxd3 {[%clk 0:00:11.1]} 35... Qb2+ {[%clk 0:00:25.6]} 36.
Kg1 {[%clk 0:00:11.5]} 36... Qc1+ {[%clk 0:00:24.4]} 37. Rd1 {[%clk 0:00:11.4]}
37... Qc4 {[%clk 0:00:23.1]} 38. Qd3 {[%clk 0:00:11]} 38... Qa2 {[%clk
0:00:20.4]} 39. Qxd5+ {[%clk 0:00:10.6]} 39... Qxd5 {[%clk 0:00:20.9]} 40. Rxd5
{[%clk 0:00:11.5]} 40... Nc3 {[%clk 0:00:20.4]} 41. Rd6 {[%clk 0:00:11.2]} 1-0

[Event "*** Titled Tuesday Blitz"]
[Site "Chess.com"]
[Date "2020.11.24"]
[Round "1"]
[White "kuban1991"]
[Black "andriipalchuk"]
[Result "1-0"]
[WhiteElo "2894"]
[BlackElo "2439"]
[TimeControl "180+1"]
[EndTime "10:22:28 PST"]
[Termination "kuban1991 won by resignation"]

1. Nf3 {[%clk 0:02:59.7]} 1... Nf6 {[%clk 0:02:59.2]} 2. g3 {[%clk 0:02:56.6]}
2... g6 {[%clk 0:02:59.1]} 3. Bg2 {[%clk 0:02:57.5]} 3... Bg7 {[%clk 0:02:59.3]}
4. O-O {[%clk 0:02:57.6]} 4... O-O {[%clk 0:02:59.9]} 5. c4 {[%clk 0:02:57.7]}
5... d6 {[%clk 0:02:54.4]} 6. Nc3 {[%clk 0:02:57.2]} 6... e5 {[%clk 0:02:51.9]}
7. d3 {[%clk 0:02:57.5]} 7... Ne8 {[%clk 0:02:46.4]} 8. Rb1 {[%clk 0:02:56.1]}
8... f5 {[%clk 0:02:43.3]} 9. Bd2 {[%clk 0:02:56.1]} 9... Nf6 {[%clk 0:02:42.8]}
10. b4 {[%clk 0:02:55.5]} 10... Nc6 {[%clk 0:02:38.6]} 11. b5 {[%clk 0:02:55.5]}
11... Ne7 {[%clk 0:02:29.7]} 12. a4 {[%clk 0:02:55.3]} 12... h6 {[%clk
0:02:28.8]} 13. a5 {[%clk 0:02:54.2]} 13... g5 {[%clk 0:02:27.5]} 14. a6 {[%clk
0:02:54.2]} 14... Rb8 {[%clk 0:02:20.5]} 15. axb7 {[%clk 0:02:46.3]} 15... Bxb7
{[%clk 0:02:21.4]} 16. Qa4 {[%clk 0:02:46]} 16... Ra8 {[%clk 0:02:16]} 17. Ne1
{[%clk 0:02:40]} 17... Bxg2 {[%clk 0:02:12.5]} 18. Kxg2 {[%clk 0:02:40.9]} 18...
Ng6 {[%clk 0:02:10]} 19. Nc2 {[%clk 0:02:40.5]} 19... f4 {[%clk 0:02:07.9]} 20.
Nd5 {[%clk 0:02:32.9]} 20... Nxd5 {[%clk 0:02:07.2]} 21. cxd5 {[%clk 0:02:33.8]}
21... Qd7 {[%clk 0:02:04.1]} 22. Qe4 {[%clk 0:02:27.4]} 22... Rf6 {[%clk
0:01:38]} 23. Nb4 {[%clk 0:02:24]} 23... h5 {[%clk 0:00:45.2]} 24. Nc6 {[%clk
0:02:21]} 24... g4 {[%clk 0:00:39.9]} 25. f3 {[%clk 0:01:54.8]} 25... gxf3+
{[%clk 0:00:30.6]} 26. Rxf3 {[%clk 0:01:49.8]} 26... h4 {[%clk 0:00:26.5]} 27.
Rbf1 {[%clk 0:01:32.2]} 27... hxg3 {[%clk 0:00:25.4]} 28. hxg3 {[%clk
0:01:30.2]} 28... Qg4 {[%clk 0:00:26]} 29. Rh1 {[%clk 0:01:29.8]} 29... a6
{[%clk 0:00:20.6]} 30. b6 {[%clk 0:01:17.2]} 30... cxb6 {[%clk 0:00:19.5]} 31.
Kf1 {[%clk 0:01:17.5]} 31... a5 {[%clk 0:00:12.5]} 32. gxf4 {[%clk 0:01:15.2]}
32... exf4 {[%clk 0:00:12]} 33. Rg1 {[%clk 0:01:12.8]} 33... Qh5 {[%clk
0:00:10.4]} 34. Bc3 {[%clk 0:01:08.4]} 34... Ne5 {[%clk 0:00:08.3]} 35. Nxe5
{[%clk 0:01:06.2]} 35... dxe5 {[%clk 0:00:09.2]} 36. Bxe5 {[%clk 0:01:06.8]}
36... Rf7 {[%clk 0:00:09.8]} 37. Bxg7 {[%clk 0:01:00.1]} 37... Rxg7 {[%clk
0:00:10.7]} 38. Qe6+ {[%clk 0:00:58.2]} 38... Qf7 {[%clk 0:00:09.9]} 39. Rxg7+
{[%clk 0:00:45]} 39... Kxg7 {[%clk 0:00:10.8]} 40. Qg4+ {[%clk 0:00:45.7]} 40...
Qg6 {[%clk 0:00:10.2]} 41. Qxf4 {[%clk 0:00:46.2]} 41... a4 {[%clk 0:00:08.9]}
42. Rg3 {[%clk 0:00:45]} 42... a3 {[%clk 0:00:08.6]} 43. Rxg6+ {[%clk
0:00:44.8]} 43... Kxg6 {[%clk 0:00:09.5]} 44. Qe4+ {[%clk 0:00:43.3]} 44... Kf6
{[%clk 0:00:09.7]} 45. d6 {[%clk 0:00:43.7]} 45... Ra7 {[%clk 0:00:07.6]} 46.
Qd4+ {[%clk 0:00:42.7]} 46... Ke6 {[%clk 0:00:07.2]} 47. Qxb6 {[%clk 0:00:43.6]}
47... Ra8 {[%clk 0:00:06.9]} 48. d7+ {[%clk 0:00:41]} 48... Kxd7 {[%clk
0:00:06.6]} 1-0

[Event "*** Titled Tuesday Blitz"]
[Site "Chess.com"]
[Date "2020.11.24"]
[Round "1"]
[White "GregShahade"]
[Black "MillyNeuf"]
[Result "1-0"]
[WhiteElo "2735"]
[BlackElo "2385"]
[TimeControl "180+1"]
[EndTime "10:22:29 PST"]
[Termination "GregShahade won by checkmate"]

1. e4 {[%clk 0:02:58.5]} 1... e5 {[%clk 0:02:59.2]} 2. Nf3 {[%clk 0:02:58.1]}
2... Nc6 {[%clk 0:02:59.1]} 3. Bb5 {[%clk 0:02:58.7]} 3... a6 {[%clk 0:02:58.6]}
4. Ba4 {[%clk 0:02:59.1]} 4... Nf6 {[%clk 0:02:57.5]} 5. O-O {[%clk 0:02:59.3]}
5... Nxe4 {[%clk 0:02:56.3]} 6. d4 {[%clk 0:02:58.9]} 6... b5 {[%clk 0:02:55.5]}
7. Bb3 {[%clk 0:02:55.6]} 7... d5 {[%clk 0:02:55.5]} 8. dxe5 {[%clk 0:02:55.4]}
8... Be6 {[%clk 0:02:55]} 9. Nbd2 {[%clk 0:02:52.2]} 9... Nc5 {[%clk 0:02:53.9]}
10. c3 {[%clk 0:02:52.7]} 10... Be7 {[%clk 0:02:52.9]} 11. Bc2 {[%clk
0:02:51.7]} 11... d4 {[%clk 0:02:51.4]} 12. Nb3 {[%clk 0:02:46.8]} 12... dxc3
{[%clk 0:02:42.4]} 13. bxc3 {[%clk 0:02:31]} 13... Qxd1 {[%clk 0:02:39.5]} 14.
Rxd1 {[%clk 0:02:30.6]} 14... Rd8 {[%clk 0:02:31.9]} 15. Be3 {[%clk 0:02:27.4]}
15... Nd7 {[%clk 0:02:19.1]} 16. Be4 {[%clk 0:01:43.7]} 16... Ncxe5 {[%clk
0:02:11.7]} 17. Nxe5 {[%clk 0:01:37.2]} 17... Nxe5 {[%clk 0:02:12.6]} 18. Bd4
{[%clk 0:01:32.7]} 18... Bf6 {[%clk 0:02:07.4]} 19. Bb7 {[%clk 0:01:27.8]} 19...
O-O {[%clk 0:01:49.9]} 20. Bxa6 {[%clk 0:01:22]} 20... c6 {[%clk 0:01:47.8]} 21.
Nc5 {[%clk 0:01:08.6]} 21... Bd5 {[%clk 0:01:41.9]} 22. a4 {[%clk 0:00:59.9]}
22... bxa4 {[%clk 0:01:35.4]} 23. Rxa4 {[%clk 0:00:54.1]} 23... Ng4 {[%clk
0:01:23.5]} 24. Be2 {[%clk 0:00:45]} 24... Ne5 {[%clk 0:01:03.1]} 25. f4 {[%clk
0:00:39]} 25... Nd7 {[%clk 0:00:55.8]} 26. Nxd7 {[%clk 0:00:32.7]} 26... Rxd7
{[%clk 0:00:55.8]} 27. Bxf6 {[%clk 0:00:31.6]} 27... gxf6 {[%clk 0:00:56.7]} 28.
c4 {[%clk 0:00:20.3]} 28... Be6 {[%clk 0:00:54.4]} 29. Rxd7 {[%clk 0:00:20.8]}
29... Bxd7 {[%clk 0:00:55.3]} 30. c5 {[%clk 0:00:20.9]} 30... Rb8 {[%clk
0:00:49.1]} 31. Rd4 {[%clk 0:00:20.3]} 31... Be8 {[%clk 0:00:44.6]} 32. Bf3
{[%clk 0:00:20.5]} 32... Rb1+ {[%clk 0:00:41.6]} 33. Kf2 {[%clk 0:00:20.1]}
33... Rc1 {[%clk 0:00:42.1]} 34. Rd8 {[%clk 0:00:20.2]} 34... Rxc5 {[%clk
0:00:22.8]} 35. Rxe8+ {[%clk 0:00:20.5]} 35... Kg7 {[%clk 0:00:22.9]} 36. Kg3
{[%clk 0:00:20.7]} 36... Rc1 {[%clk 0:00:20.8]} 37. Rc8 {[%clk 0:00:20.5]} 37...
c5 {[%clk 0:00:21.4]} 38. Kg4 {[%clk 0:00:20.7]} 38... Kg6 {[%clk 0:00:20.4]}
39. Be4+ {[%clk 0:00:20.4]} 39... f5+ {[%clk 0:00:20]} 40. Bxf5+ {[%clk
0:00:20.4]} 40... Kg7 {[%clk 0:00:20.4]} 41. Rc7 {[%clk 0:00:20.4]} 41... c4
{[%clk 0:00:20]} 42. Be6 {[%clk 0:00:18.9]} 42... c3 {[%clk 0:00:17.1]} 43.
Rxf7+ {[%clk 0:00:19.2]} 43... Kh6 {[%clk 0:00:11.9]} 44. Rc7 {[%clk 0:00:18.4]}
44... Re1 {[%clk 0:00:09]} 45. Bf5 {[%clk 0:00:16.4]} 45... Rc1 {[%clk
0:00:07.9]} 46. Rxh7# {[%clk 0:00:16.1]} 1-0

[Event "*** Titled Tuesday Blitz"]
[Site "Chess.com"]
[Date "2020.11.24"]
[Round "1"]
[White "Bulldog167"]
[Black "Kislov_Oleg"]
[Result "0-1"]
[WhiteElo "2632"]
[BlackElo "2352"]
[TimeControl "180+1"]
[EndTime "10:22:30 PST"]
[Termination "Kislov_Oleg won by resignation"]

1. e4 {[%clk 0:03:00.9]} 1... e6 {[%clk 0:02:59.9]} 2. d4 {[%clk 0:03:00.8]}
2... d5 {[%clk 0:03:00.4]} 3. Nc3 {[%clk 0:03:00.9]} 3... Nf6 {[%clk 0:03:00.2]}
4. Bg5 {[%clk 0:02:59.4]} 4... dxe4 {[%clk 0:02:59.1]} 5. Nxe4 {[%clk
0:02:58.9]} 5... Be7 {[%clk 0:02:59.6]} 6. Bxf6 {[%clk 0:02:59.1]} 6... gxf6
{[%clk 0:03:00.1]} 7. Qd2 {[%clk 0:02:56.3]} 7... b6 {[%clk 0:02:59.1]} 8. Bb5+
{[%clk 0:02:48.1]} 8... c6 {[%clk 0:02:58.5]} 9. Bc4 {[%clk 0:02:45.1]} 9... Qc7
{[%clk 0:02:55.7]} 10. O-O-O {[%clk 0:02:33.9]} 10... Bb7 {[%clk 0:02:54.5]} 11.
Nf3 {[%clk 0:02:30.9]} 11... Nd7 {[%clk 0:02:53.9]} 12. Kb1 {[%clk 0:02:28.9]}
12... O-O-O {[%clk 0:02:52]} 13. Rhe1 {[%clk 0:02:26.4]} 13... h6 {[%clk
0:02:44.1]} 14. Qe2 {[%clk 0:02:16.6]} 14... f5 {[%clk 0:02:37.8]} 15. Nc3
{[%clk 0:02:08.1]} 15... Bf6 {[%clk 0:02:36.2]} 16. a3 {[%clk 0:01:42.7]} 16...
Rhg8 {[%clk 0:02:32.3]} 17. g3 {[%clk 0:01:41.7]} 17... Kb8 {[%clk 0:02:10.3]}
18. Qe3 {[%clk 0:01:31.6]} 18... Bg7 {[%clk 0:02:06.3]} 19. Ne2 {[%clk
0:01:20.4]} 19... c5 {[%clk 0:02:01.4]} 20. d5 {[%clk 0:01:16.6]} 20... Rge8
{[%clk 0:01:16.1]} 21. Nf4 {[%clk 0:01:04]} 21... e5 {[%clk 0:01:03.1]} 22. Nh5
{[%clk 0:01:00.8]} 22... Bh8 {[%clk 0:00:59.6]} 23. d6 {[%clk 0:01:00.7]} 23...
Qc6 {[%clk 0:00:56.8]} 24. Bd5 {[%clk 0:01:00.9]} 24... Qb5 {[%clk 0:00:55.2]}
25. c4 {[%clk 0:00:53.1]} 25... Qa4 {[%clk 0:00:49.4]} 26. Bxf7 {[%clk
0:00:52.4]} 26... Be4+ {[%clk 0:00:39.1]} 27. Ka2 {[%clk 0:00:47.8]} 27... Rf8
{[%clk 0:00:34.2]} 28. b3 {[%clk 0:00:45.6]} 28... Qc6 {[%clk 0:00:26.4]} 29.
Bd5 {[%clk 0:00:46.1]} 29... Bxd5 {[%clk 0:00:26.4]} 30. Rxd5 {[%clk 0:00:47]}
30... e4 {[%clk 0:00:27]} 31. Nh4 {[%clk 0:00:45.2]} 31... Ne5 {[%clk
0:00:27.3]} 32. Qxh6 {[%clk 0:00:37.7]} 32... Nd3 {[%clk 0:00:23.2]} 33. Re2
{[%clk 0:00:32.7]} 33... Bd4 {[%clk 0:00:22.5]} 34. Kb1 {[%clk 0:00:23.2]} 34...
Rh8 {[%clk 0:00:18.3]} 35. Qd2 {[%clk 0:00:21.2]} 35... Rxd6 {[%clk 0:00:17.8]}
36. Rxd6 {[%clk 0:00:20.9]} 36... Qxd6 {[%clk 0:00:18.3]} 37. Nxf5 {[%clk
0:00:18.2]} 37... Qe5 {[%clk 0:00:17]} 38. g4 {[%clk 0:00:14.2]} 38... Rxh5
{[%clk 0:00:17]} 39. g5 {[%clk 0:00:12.6]} 39... Qxf5 {[%clk 0:00:16.8]} 40. f3
{[%clk 0:00:10.4]} 40... exf3 {[%clk 0:00:15.3]} 41. Re8+ {[%clk 0:00:10.2]}
41... Kb7 {[%clk 0:00:14.5]} 42. Qe1 {[%clk 0:00:06.9]} 42... Nxe1+ {[%clk
0:00:14.3]} 0-1

[Event "*** Titled Tuesday Blitz"]
[Site "Chess.com"]
[Date "2020.11.24"]
[Round "1"]
[White "mbachez"]
[Black "OK97"]
[Result "0-1"]
[WhiteElo "2398"]
[BlackElo "2766"]
[TimeControl "180+1"]
[EndTime "10:22:31 PST"]
[Termination "OK97 won by resignation"]

1. e4 {[%clk 0:03:00.2]} 1... e6 {[%clk 0:02:59.9]} 2. d4 {[%clk 0:02:58.1]}
2... d5 {[%clk 0:03:00.5]} 3. Bd3 {[%clk 0:02:57.7]} 3... dxe4 {[%clk
0:02:59.9]} 4. Bxe4 {[%clk 0:02:57.1]} 4... Nf6 {[%clk 0:03:00.8]} 5. Bf3 {[%clk
0:02:57.2]} 5... c5 {[%clk 0:03:01.4]} 6. Ne2 {[%clk 0:02:56.6]} 6... Nc6 {[%clk
0:03:02]} 7. Be3 {[%clk 0:02:56.1]} 7... cxd4 {[%clk 0:03:02.6]} 8. Nxd4 {[%clk
0:02:55.1]} 8... Ne5 {[%clk 0:03:03]} 9. Nc3 {[%clk 0:02:55]} 9... Be7 {[%clk
0:03:03.1]} 10. a3 {[%clk 0:02:51]} 10... O-O {[%clk 0:03:01.9]} 11. Qe2 {[%clk
0:02:51]} 11... Bd7 {[%clk 0:02:56.8]} 12. O-O {[%clk 0:02:39.2]} 12... Qc8
{[%clk 0:02:43.6]} 13. Rfd1 {[%clk 0:02:34.6]} 13... Nxf3+ {[%clk 0:02:42.7]}
14. Nxf3 {[%clk 0:02:28.2]} 14... Rd8 {[%clk 0:02:34.9]} 15. Bd4 {[%clk
0:02:25.5]} 15... Be8 {[%clk 0:02:17.8]} 16. Rd2 {[%clk 0:02:20.3]} 16... b6
{[%clk 0:02:00.5]} 17. Rad1 {[%clk 0:02:18.5]} 17... Qb7 {[%clk 0:02:00.8]} 18.
Ng5 {[%clk 0:02:02.6]} 18... Bc6 {[%clk 0:01:45.4]} 19. f3 {[%clk 0:01:43.4]}
19... h6 {[%clk 0:01:38.2]} 20. Nge4 {[%clk 0:01:31.9]} 20... Nxe4 {[%clk
0:01:38.3]} 21. fxe4 {[%clk 0:01:31.5]} 21... Bg5 {[%clk 0:01:25.6]} 22. Be3
{[%clk 0:01:30.4]} 22... Rxd2 {[%clk 0:01:14.5]} 23. Rxd2 {[%clk 0:01:28.2]}
23... Bf6 {[%clk 0:01:12.8]} 24. Bd4 {[%clk 0:01:27.7]} 24... Bg5 {[%clk
0:01:12.6]} 25. Be3 {[%clk 0:01:27.7]} 25... Be7 {[%clk 0:01:12.2]} 26. Qg4
{[%clk 0:01:24.2]} 26... Kf8 {[%clk 0:00:52.9]} 27. Rf2 {[%clk 0:01:21.8]} 27...
Bf6 {[%clk 0:00:46.1]} 28. Rxf6 {[%clk 0:00:52.7]} 28... gxf6 {[%clk 0:00:45.6]}
29. e5 {[%clk 0:00:50.1]} 29... fxe5 {[%clk 0:00:33.8]} 30. Bxh6+ {[%clk
0:00:48]} 30... Ke7 {[%clk 0:00:34.4]} 31. Qb4+ {[%clk 0:00:38.8]} 31... Kd7
{[%clk 0:00:33]} 32. Bg5 {[%clk 0:00:38.9]} 32... Re8 {[%clk 0:00:30.4]} 33. Qg4
{[%clk 0:00:33.2]} 33... Kc8 {[%clk 0:00:30]} 34. Bf6 {[%clk 0:00:31.8]} 34...
e4 {[%clk 0:00:28.9]} 35. Be5 {[%clk 0:00:30.6]} 35... f5 {[%clk 0:00:28.1]} 36.
Qg6 {[%clk 0:00:28]} 36... Qd7 {[%clk 0:00:28.7]} 37. h3 {[%clk 0:00:26.9]}
37... Kb7 {[%clk 0:00:28.8]} 38. Kh2 {[%clk 0:00:25.8]} 38... e3 {[%clk
0:00:28.9]} 39. Bg3 {[%clk 0:00:25]} 39... e5 {[%clk 0:00:28.1]} 40. b4 {[%clk
0:00:23]} 40... f4 {[%clk 0:00:28.6]} 41. Be1 {[%clk 0:00:21.7]} 41... Qe6
{[%clk 0:00:28.5]} 42. Qh7+ {[%clk 0:00:16.6]} 42... Re7 {[%clk 0:00:29]} 43.
Qh8 {[%clk 0:00:16.5]} 43... Qg6 {[%clk 0:00:28.2]} 44. g4 {[%clk 0:00:12.8]}
44... Qxc2+ {[%clk 0:00:28]} 0-1